[Event "Swietokrzyskie GM Chess-ch 2022"]
[Site "Zagnansk"]
[Date "2022.05.01"]
[Round "3.2"]
[White "Fus, FM Jakub"]
[Black "Mikrut, IM Dariusz"]
[Result "1-0"]
[ECO "E91"]
[WhiteElo "2377"]
[BlackElo "2361"]
[Annotator "TA"]
[PlyCount "103"]
[EventDate "2022.04.29"]
[EventCountry "POL"]
[SourceTitle "playchess.com"]
[Source "ChessBase"]
[SourceQuality "1"]
[TimeControl "40/5400+30:1800+30"]

{[%evp 21,103,35,23,26,24,29,34,17,9,12,14,-9,-7,-14,-14,-8,-9,-9,0,0,0,0,0,0,0,0,0,0,0,0,0,0,0,0,0,0,0,0,0,0,12,14,18,14,9,10,232,227,213,211,220,239,245,240,268,261,261,245,332,332,326,325,280,306,439,377,623,618,588,581,1514,1572,1446,1230,2444,1918,4827,3660,29975,29973,29978,29979,6625,5110]} 1. d4 {[%emt 0:00:02]} d6 {[%emt 0:00:07]} 2. Nf3 {[%emt 0:00:19]} Nf6 {[%emt 0:00:08]} 3. c4 {[%emt 0:00:18]} g6 {[%emt 0:00:26]} 4. Nc3 {[%emt 0:00:10]} Bg7 {[%emt 0:00:10]} 5. e4 {[%emt 0:00:30]} O-O {[%emt 0:00:23]} 6. Be2 {[%emt 0:00:14]} Bg4 {[%emt 0:02:47]} 7. Be3 {[%emt 0:00:29]} Nfd7 {[%emt 0:00:17]} 8. Ng1 {[%emt 0:01:56][%cal Bf3g1,Bg1e2,Be2d4][%mdl 32]} Bxe2 {[%emt 0:03:16]} 9. Ngxe2 {[%emt 0:00:08]} c5 {[%emt 0:04:28]} 10. O-O {[%emt 0:04:10]} cxd4 {[%emt 0:00:36] 10...cxd4 is better than 10...Nc6.} 11. Nxd4 {[%emt 0:09:48]} Nc6 {[%emt 0:00:38]} 12. b3 {[%emt 0:02:00] E91: King's Indian: Classical: 6 Be2, unusual replies including 6...c5 and 6...Bg4.} Qa5 {[%emt 0:03:07] was the old line (12...a6).} 13. Rc1 {[%emt 0:09:37]} Rfc8 {[%emt 0:01:57] [#]} 14. Nxc6 $146 {[%emt 0:03:44] White is slightly better.} ({Predecessor:} 14. Qd2 a6 15. Rfd1 Nc5 16. f3 Rab8 17. Nd5 Qxd2 18. Rxd2 Bxd4 19. Bxd4 Re8 20. Bf2 f6 21. Kf1 {1-0 (72) Vazquez,G (2527)-Garcia Pantoja,R (2526) Chess.com INT 2020}) 14... bxc6 {[%emt 0:01:55]} 15. Bd4 {[%emt 0:01:31]} Bh6 {[%emt 0:21:17]} 16. f4 {[%emt 0:03:14]} e5 {[%emt 0:05:53]} 17. Be3 {[%emt 0:01:19]} exf4 {[%emt 0:01:58]} 18. Bxf4 {[%emt 0:00:19]} ({Reject} 18. Qxd6 fxe3 19. Qxd7 Rc7 $17) 18... Bxf4 {[%emt 0:02:09]} 19. Rxf4 {[%emt 0:00:14]} Qg5 {[%emt 0:06:45]} 20. Qxd6 {[%emt 0:13:24]} Ne5 21. Qf6 {[%emt 0:05:09]} Qxf6 {[%emt 0:00:55]} 22. Rxf6 {[%emt 0:00:05]} Rd8 $1 {[%emt 0:00:05]} 23. Rc2 {[%emt 0:05:26]} Rd3 {[%emt 0:01:25]} 24. h3 {[%emt 0:01:19]} Rad8 {[%emt 0:00:48]} 25. Na4 {[%emt 0:00:30]} Kg7 {[%emt 0:01:42]} 26. Rf1 {[%emt 0:02:01]} Rd2 {[%emt 0:09:39]} 27. Rxd2 {[%emt 0:11:39]} Rxd2 $11 {[%emt 0:00:07][%mdl 4096] Endgame KRN-KRN} 28. Rf2 {[%emt 0:00:04]} Rd1+ {[%emt 0:00:06]} 29. Kh2 {[%emt 0:00:49]} Nd3 {[%emt 0:00:16]} 30. Re2 {[%emt 0:02:46]} Kf6 {[%emt 0:03:34]} 31. Nc3 {[%emt 0:05:09]} Rc1 {[%emt 0:10:07]} 32. e5+ {[%emt 0:00:20]} Ke7 {[%emt 0:00:05]} 33. Ne4 {[%emt 0:00:53]} Nxe5 $2 {[%emt 0:04:40] This costs Black the game.} (33... Ra1 $11 {and Black stays safe.}) 34. Nf2 $18 {[%emt 0:02:58]} f6 {[%emt 0:00:41]} 35. Nd3 $1 {[%emt 0:00:21]} Rd1 {[%emt 0:00:22]} 36. Nxe5 {[%emt 0:00:05]} fxe5 {[%emt 0:00:04]} 37. Rxe5+ {[%emt 0:00:03] KR-KR} Kf6 {[%emt 0:00:21]} 38. Rc5 {[%emt 0:00:59]} Rd6 {[%emt 0:00:17]} 39. Kg3 {[%emt 0:00:36]} Ke7 {[%emt 0:00:27]} 40. Ra5 {[%emt 0:00:00]} Rd7 {[%emt 0:00:00]} 41. Kf4 {[%emt 0:15:54]} Kd6 {[%emt 0:15:18]} 42. Kg5 {[%emt 0:00:30]} c5 {[%emt 0:01:00]} (42... Ke7 $142 43. Kf4 Ke6) 43. g4 {[%emt 0:13:58] [#] Black must now prevent Kf6.} Kc6 $2 {[%emt 0:00:53]} (43... Rc7 44. Kf6 Kd7) 44. Ra6+ {[%emt 0:00:03]} Kb7 {[%emt 0:00:05]} 45. Re6 {[%emt 0:00:04]} Rd2 {[%emt 0:00:19]} 46. Re7+ {[%emt 0:01:08]} Kb6 {[%emt 0:00:04]} 47. Rxh7 {[%emt 0:00:41]} Rxa2 {[%emt 0:00:05]} 48. Rh8 {[%emt 0:01:14]} Kb7 {[%emt 0:00:14]} 49. Kxg6 {[%emt 0:00:21] [#] Intending h4 and mate.} Rb2 {[%emt 0:00:04]} 50. h4 {[%emt 0:00:16][%cal Bh3h4,Bh4h5,Bh5h6][%mdl 32]} Rxb3 {[%emt 0:00:03]} 51. h5 {[%emt 0:00:16]} a5 {[%emt 0:00:25]} 52. h6 {[%emt 0:00:04] Weighted Error Value: White=0.02 (flawless) /Black=0.52} 1-0

[Event "Swietokrzyskie GM Chess-ch 2022"]
[Site "Zagnansk"]
[Date "2022.05.01"]
[Round "3.3"]
[White "Stoyanov, IM Tsvetan"]
[Black "Budisavljevic, GM Luka"]
[Result "1/2-1/2"]
[ECO "A13"]
[WhiteElo "2424"]
[BlackElo "2509"]
[Annotator "TA"]
[PlyCount "113"]
[EventDate "2022.04.29"]
[EventCountry "POL"]
[SourceTitle "playchess.com"]
[Source "ChessBase"]
[SourceQuality "1"]
[TimeControl "40/5400+30:1800+30"]

{[%evp 15,113,-7,29,-6,-4,-13,-7,-3,0,-13,-9,-17,-16,-32,-20,-84,-87,-93,-84,-85,-72,-93,-51,-48,-54,-51,-52,-54,-27,-33,-33,-34,-33,-66,-54,-66,-66,-66,-66,-66,-38,-48,-49,-156,-141,-165,-169,-200,-202,-191,-182,-302,-281,-226,-4,-155,-130,-166,-147,-416,-171,-511,-431,-431,-424,-414,-133,-160,-55,-112,-45,-45,-45,-61,-62,-120,-120,-137,-62,-71,-45,-69,0,0,0,0,0,0,0,0,0,0,0,0,0,0,0,0,0,0]} 1. c4 {[%emt 0:00:03]} e6 {[%emt 0:00:04]} 2. Nf3 {[%emt 0:00:38]} Nf6 {[%emt 0:00:17]} 3. e3 {[%emt 0:03:20]} d5 {[%emt 0:01:03]} 4. Nc3 {[%emt 0:01:22]} a6 {[%emt 0:00:15]} 5. d4 {[%emt 0:12:08]} c5 {[%emt 0:00:04]} 6. dxc5 {[%emt 0:11:08]} Bxc5 {[%emt 0:00:25]} 7. a3 {[%emt 0:00:55]} dxc4 {[%emt 0:00:15]} 8. Qxd8+ {[%emt 0:03:07]} Kxd8 {[%emt 0:00:02]} 9. Bxc4 {[%emt 0:00:11] D40: Queen's Gambit Declined: Semi-Tarrasch with 5 e3.} b5 {[%emt 0:00:01]} 10. Bd3 {[%emt 0:07:41]} Bb7 {[%emt 0:00:01]} 11. b4 {[%emt 0:02:45]} Bd6 {[%emt 0:00:01]} 12. Bb2 {[%emt 0:04:34]} Nbd7 {[%emt 0:00:01]} 13. Ke2 {[%emt 0:03:16]} Ke7 {[%emt 0:00:01]} 14. Rac1 {[%emt 0:04:01] [#]} Rhg8 $5 $146 {[%emt 0:07:19][%mdl 8] New and interesting.} ({Predecessor:} 14... Rac8 15. Nb1 g5 16. h3 h5 17. Rxc8 Rxc8 18. Nxg5 Bxg2 19. Rg1 Bb7 20. Nd2 Be5 21. Bxe5 Nxe5 {½-½ (40) Vernersson,P (2290)-Hillarp Persson,T (2543) Vaxjo 2018}) 15. e4 {[%emt 0:13:32]} (15. h4 $11 {keeps the balance.}) 15... g5 $17 {[%emt 0:01:27][%cal Bg7g5,Bg5g4][%mdl 32]} 16. g3 {[%emt 0:01:55]} g4 {[%emt 0:04:52]} 17. Nd2 {[%emt 0:00:01]} Ne5 {[%emt 0:00:59]} 18. Bb1 {[%emt 0:00:19]} Nfd7 {[%emt 0:11:46]} 19. h3 {[%emt 0:04:48]} h5 {[%emt 0:04:03]} 20. hxg4 {[%emt 0:00:44]} hxg4 {[%emt 0:00:02]} 21. Rh5 {[%emt 0:02:20]} Rh8 {[%emt 0:04:06]} 22. Rxh8 {[%emt 0:06:03]} Rxh8 {[%emt 0:00:01]} 23. Nd1 {[%emt 0:04:02]} Ra8 {[%emt 0:01:52]} 24. Nb3 {[%emt 0:03:31]} Nc4 {[%emt 0:14:20]} 25. Bd3 {[%emt 0:00:43]} Nxb2 26. Nxb2 {[%emt 0:00:01]} Rh8 {[%emt 0:25:02][%cal Ba8h8,Bh8h1,Bh1h2][%mdl 32]} 27. Nd1 {[%emt 0:01:45]} Ne5 {[%emt 0:00:02]} 28. Na5 {[%emt 0:02:41]} Ba8 {[%emt 0:00:13]} 29. Bb1 {[%emt 0:00:50]} (29. Ne3 $15) 29... Rh1 $36 {[%emt 0:06:35][%mdl 2048] White is under strong pressure.} 30. Nb3 {[%emt 0:01:05]} Nc4 {[%emt 0:01:06]} 31. Bd3 {[%emt 0:01:38]} Nxa3 {[%emt 0:02:51]} 32. Nc5 {[%emt 0:00:11]} f5 $1 {[%emt 0:03:09] Hoping for ...fxe4.} 33. exf5 (33. Ra1 $142 fxe4 34. Rxa3 exd3+ 35. Kd2) 33... Bf3+ $19 {[%emt 0:01:21]} 34. Kd2 {[%emt 0:01:25]} Rh2 $2 (34... Bxc5 $19 35. bxc5 Bxd1) 35. Ke3 $2 {[%emt 0:03:52]} (35. Rc3 $1 $11 Nc4+ 36. Bxc4 bxc4 37. Re3) 35... a5 {[%emt 0:06:18] aiming for ...Rh1.} 36. Nc3 {[%emt 0:01:19]} axb4 {[%emt 0:03:22]} 37. Nxb5 $2 {[%emt 0:00:32][%mdl 8192]} (37. f6+ $17 Kxf6 38. N5e4+ Ke7 39. Nxd6 Kxd6 40. Nxb5+ Nxb5 41. Bxb5) 37... Rh1 {[%emt 0:01:10]} (37... Nxb5 $142 38. Bxb5 Rh1) 38. Nb3 $2 {[%emt 0:00:31]} (38. f6+ {was the crucial defense.} Kxf6 39. Nd7+ Ke7 40. Rxh1 Bxh1 41. Nxd6) 38... Rxc1 {[%emt 0:01:15]} 39. Nxc1 {[%emt 0:00:29][%cal Of5f6]} Nxb5 {[%emt 0:00:01]} 40. Bxb5 {[%emt 0:00:00]} exf5 {[%emt 0:00:00][%mdl 4096] Endgame KBB-KBN} (40... Bc5+ $1 $19 41. Kd2 Bxf2 42. f6+ Kxf6) 41. Nd3 $17 {[%emt 0:27:06]} Bd5 {[%emt 0:18:10]} (41... Kf6 $17 {And now ...Bc7 would win.} 42. Kd4 Bd1) 42. Kd4 $15 {[%emt 0:00:52] [#]} Be6 {[%emt 0:03:43]} (42... Bg2 $1 $17 43. Ne1 Be4) 43. Bc4 {[%emt 0:03:48]} Bd7 {[%emt 0:06:25]} 44. Bd5 {[%emt 0:00:32]} Bb5 {[%emt 0:01:21]} 45. Bb3 {[%emt 0:00:34]} ({White should play} 45. Bc4 $15 Ba4 46. Bg8) 45... Kf6 $17 {[%emt 0:00:53] White must now prevent ...Bb8.} 46. Nf4 {[%emt 0:00:36] [#]} Bc6 {[%emt 0:01:34]} (46... Bf1 $1 $17 47. Nd5+ Kg5) 47. Nd5+ $15 {[%emt 0:00:30]} Kg7 {[%emt 0:02:07]} 48. Ne3 {[%emt 0:00:25]} Kg6 {[%emt 0:00:37]} ({Better is} 48... Bd7 $1 $15) 49. Bc2 $11 {[%emt 0:00:20] The position is equal.} Bd7 {[%emt 0:01:54]} 50. Nxg4 {[%emt 0:00:31]} b3 {[%emt 0:01:15]} 51. Bd3 {[%emt 0:00:37]} Kg5 {[%emt 0:00:58]} 52. Ne3 {[%emt 0:00:06]} Be6 53. f4+ {[%emt 0:00:41]} Kf6 {[%emt 0:01:10]} 54. Kc3 {[%emt 0:00:50]} Bc5 {[%emt 0:00:18]} 55. Nxf5 {[%emt 0:00:23]} Bxf5 {[%emt 0:00:24]} 56. Bxf5 {[%emt 0:00:04]} Kxf5 {[%emt 0:00:04]} 57. Kxb3 {[%emt 0:00:03] And White is the lucky defender.  Weighted Error Value: White=0.36/Black=0.33} 1/2-1/2

[Event "Swietokrzyskie GM Chess-ch 2022"]
[Site "Zagnansk"]
[Date "2022.05.01"]
[Round "3.5"]
[White "Tazbir, GM Marcin"]
[Black "Chatalbashev, GM Boris"]
[Result "1/2-1/2"]
[ECO "B09"]
[WhiteElo "2506"]
[BlackElo "2539"]
[Annotator "TA"]
[PlyCount "88"]
[EventDate "2022.04.29"]
[EventCountry "POL"]
[SourceTitle "playchess.com"]
[Source "ChessBase"]
[SourceQuality "1"]
[TimeControl "40/5400+30:1800+30"]

{[%evp 21,88,16,32,0,0,0,0,0,0,0,0,0,0,0,0,0,0,-31,-20,-24,-13,-68,-65,-64,-49,-101,-108,-99,-110,-106,-106,-98,-88,-112,-60,-83,-81,-80,-89,-96,-22,-39,-43,-45,-26,-40,6,21,52,0,0,0,80,108,170,14,10,17,244,8,30,0,0,0,0,0,0,0,0]} 1. e4 {[%emt 0:00:03]} g6 {[%emt 0:00:33]} 2. d4 {[%emt 0:00:03]} Bg7 {[%emt 0:00:04]} 3. Nc3 {[%emt 0:00:04]} d6 {[%emt 0:00:06]} 4. f4 {[%emt 0:00:32]} Nf6 {[%emt 0:00:06]} 5. Nf3 {[%emt 0:00:04]} O-O {[%emt 0:00:06]} 6. Bd3 {[%emt 0:00:05]} Nc6 {[%emt 0:01:25]} 7. e5 {[%emt 0:01:43]} dxe5 {[%emt 0:00:05]} 8. fxe5 {[%emt 0:00:04]} Nh5 {[%emt 0:00:11]} 9. Be3 {[%emt 0:03:40]} Bg4 {[%emt 0:00:39]} 10. Be2 {[%emt 0:01:13]} f6 {[%emt 0:00:07]} 11. exf6 {[%emt 0:00:43]} exf6 {[%emt 0:00:17]} 12. Qd2 {[%emt 0:02:13] was the old line (12.0-0). B09: Pirc Defence: Austrian Attack.} Ne7 {[%emt 0:02:17]} 13. Bd3 {[%emt 0:06:55]} Bxf3 {[%emt 0:00:58]} 14. gxf3 {[%emt 0:00:05]} Qd7 {[%emt 0:00:22] [#]} 15. O-O-O $146 {[%emt 0:02:21]} ({Predecessor:} 15. Ne4 Nd5 16. Bc4 Kh8 17. O-O-O f5 18. Nc3 Nxe3 19. Qxe3 Rfe8 20. Qd2 a6 21. Kb1 {0-1 (42) Schroeder,J (2550)-Chatalbashev,B (2551) Germany 2017}) 15... Nf5 {[%emt 0:00:44]} 16. Bxf5 {[%emt 0:00:12]} Qxf5 {[%emt 0:00:06]} 17. Rhf1 {[%emt 0:00:25]} Rad8 {[%emt 0:10:08]} 18. Kb1 {[%emt 0:03:00]} Rfe8 {[%emt 0:05:07]} 19. Ne4 {[%emt 0:04:12]} Qd5 {[%emt 0:06:23]} 20. Nc3 {[%emt 0:08:08]} Qc4 {[%emt 0:04:19]} 21. Qd3 {[%emt 0:05:35]} (21. Rfe1 $11) 21... Qxd3 $15 {[%emt 0:01:17]} 22. Rxd3 {[%emt 0:00:03]} f5 {[%emt 0:10:05][%cal Oc7c5]} 23. a4 {[%emt 0:01:28]} (23. Rfd1 $15) 23... c5 $17 {[%emt 0:01:11]} 24. Nb5 {[%emt 0:05:07]} a6 {[%emt 0:05:19]} 25. Na3 {[%emt 0:00:05]} cxd4 {[%emt 0:03:14]} ({Much worse is} 25... Bxd4 $6 26. Rfd1 $15) 26. Rfd1 {[%emt 0:00:26]} Be5 {[%emt 0:06:13]} 27. h3 {[%emt 0:02:14]} Kg7 {[%emt 0:15:22]} (27... Rd7 $17 {[%cal Od4e3]} 28. Bd2 Bf6) 28. Bxd4 {[%emt 0:05:32]} Bxd4 {[%emt 0:00:30]} 29. Rxd4 {[%emt 0:00:03]} Rxd4 {[%emt 0:00:30]} 30. Rxd4 $15 {[%emt 0:00:02][%mdl 4096] Endgame KRN-KRN} Re3 {[%emt 0:01:34]} ({Better is} 30... Re7 $17) 31. Rd7+ $11 {[%emt 0:00:22]} Kh6 {[%emt 0:00:37]} 32. Rxb7 {[%emt 0:00:15]} Rxf3 {[%emt 0:00:04]} 33. c4 {[%emt 0:00:09] [#] Strongly threatening c5.} Rf1+ {[%emt 0:08:08]} ({Of course not} 33... Rxh3 34. c5 Nf6 35. c6 $14) (33... Nf4 $15 {should be considered.}) 34. Kc2 {[%emt 0:00:31] aiming for c5.} Ng7 {[%emt 0:00:09]} 35. c5 {[%emt 0:09:42]} (35. Rd7 $14) 35... Ne6 {[%emt 0:00:39]} 36. b4 {[%emt 0:00:05]} f4 {[%emt 0:01:05] [#]} (36... Rf3 $1 $11 {keeps the balance.} 37. Nc4 Nd4+ 38. Kd2 Nb3+ 39. Ke2 Nd4+ 40. Kd2 Nb3+ 41. Ke2 Nd4+ 42. Kd2) 37. Nc4 $1 $16 {[%emt 0:00:23]} a5 {[%emt 0:07:33]} (37... Ra1 $16) 38. bxa5 $2 {[%emt 0:12:32]} ({White has to play} 38. Nxa5 $18 {Black must now prevent Nb3.} Ra1 39. Kc3) 38... Nxc5 {[%emt 0:00:45]} (38... Rf2+ 39. Kc3 Nxc5 40. Rf7 $16) 39. Rb5 {[%emt 0:01:38]} Ne6 {[%emt 0:03:37]} (39... Rf2+ $11 40. Nd2 Ne4) 40. Re5 $2 {[%emt 0:00:00]} (40. a6 $18 Ra1 41. Rb4) 40... Nd4+ {[%emt 0:00:00]} 41. Kd3 {[%emt 0:19:54]} (41. Kb2 $5 {[%cal Ra5a6]} Rf2+ 42. Kc3 $14) 41... Rd1+ $1 {[%emt 0:17:42] The position is equal.} 42. Ke4 {[%emt 0:04:37] Threatens to win with a6.} Nc6 $1 {[%emt 0:05:44]} 43. Rd5 {[%emt 0:13:39] Inhibits Rd4+.} (43. Kxf4 g5+ 44. Kf5 Nxe5 45. Kxe5 Rd7 $19) 43... Rc1 {[%emt 0:00:42]} 44. Nb6 {[%emt 0:00:36] Hoping for a6.} Rb1 {[%emt 0:05:43] Weighted Error Value: White=0.27 (precise) /Black=0.26 (precise)} 1/2-1/2

[Event "Swietokrzyskie GM Chess-ch 2022"]
[Site "Zagnansk"]
[Date "2022.05.02"]
[Round "4.1"]
[White "Kowalski, IM Igor"]
[Black "Chatalbashev, GM Boris"]
[Result "0-1"]
[ECO "B36"]
[WhiteElo "2370"]
[BlackElo "2539"]
[Annotator "TA"]
[PlyCount "108"]
[EventDate "2022.04.29"]
[EventCountry "POL"]
[SourceTitle "playchess.com"]
[Source "ChessBase"]
[SourceQuality "1"]
[TimeControl "40/5400+30:1800+30"]

{[%evp 25,108,20,20,8,7,10,45,19,24,36,29,28,19,0,0,-8,-6,-20,-12,-8,-10,-22,0,0,0,0,0,0,0,0,0,0,0,0,0,0,0,0,0,-290,-281,-290,-266,-243,-255,-260,-260,-260,-259,-248,-162,-158,-158,-161,-122,-270,-235,-241,-209,-577,-78,-94,-43,-55,0,0,0,-148,-148,-147,-12,-12,-12,-212,-93,-1892,-1679,-5169,-5162,-5155,-5155,-5065,-5065,-1331,-828]} 1. e4 {[%emt 0:00:01]} c5 {[%emt 0:00:09]} 2. Nf3 {[%emt 0:00:05]} Nc6 {[%emt 0:00:05]} 3. d4 {[%emt 0:00:20]} cxd4 {[%emt 0:00:06]} 4. Nxd4 {[%emt 0:00:04]} g6 {[%emt 0:00:06]} 5. c4 {[%emt 0:00:29]} Nf6 {[%emt 0:00:06]} 6. Nc3 {[%emt 0:00:04]} d6 {[%emt 0:00:05]} 7. Be2 {[%emt 0:00:20]} Nxd4 {[%emt 0:00:05]} 8. Qxd4 {[%emt 0:00:04]} Bg7 {[%emt 0:00:06]} 9. Be3 {[%emt 0:00:42]} O-O {[%emt 0:00:08]} 10. Qd2 {[%emt 0:00:06]} a5 {[%emt 0:00:17]} 11. O-O {[%emt 0:01:58]} a4 {[%emt 0:00:05]} 12. Rac1 {[%emt 0:01:33]} Qa5 {[%emt 0:00:58]} 13. f3 {[%emt 0:03:48]} Be6 {[%emt 0:00:07]} 14. Nd5 {[%emt 0:04:43] 14.Rfd1 deserves study. B36: Sicilian: Maroczy Bind: Gurgenidze System.} Qxd2 {[%emt 0:05:34]} 15. Bxd2 {[%emt 0:04:26]} Bxd5 {[%emt 0:04:35]} 16. cxd5 {[%emt 0:00:06] White is slightly better.} Nd7 {[%emt 0:00:15]} 17. Rc7 {[%emt 0:15:57]} Bd4+ {[%emt 0:08:24]} 18. Kh1 {[%emt 0:00:29]} Nc5 {[%emt 0:00:41]} 19. Bg5 {[%emt 0:04:46]} (19. Rxe7 Rac8 20. Ba5 Bxb2 $16) 19... f6 {[%emt 0:03:19]} 20. Bc1 {[%emt 0:04:29] Strongly threatening Rd1.} Rf7 {[%emt 0:03:12]} 21. g4 {[%emt 0:09:53]} e5 {[%emt 0:06:57]} 22. Rxf7 {[%emt 0:00:05]} Kxf7 {[%emt 0:00:04] [#]} 23. h4 $146 {[%emt 0:01:36]} ({Predecessor:} 23. Rd1 Ke7 24. Kg2 b5 25. g5 b4 26. h4 b3 27. a3 Nd7 28. gxf6+ Kxf6 29. Bb5 {½-½ (41) Sakelsek,T (2479)-Kovacevic,B (2482) Austria 2007}) 23... h6 {[%emt 0:15:33]} 24. Bb5 {[%emt 0:04:13]} h5 {[%emt 0:09:33]} 25. gxh5 {[%emt 0:08:53]} gxh5 {[%emt 0:00:03]} 26. Kh2 {[%emt 0:00:28]} Rg8 {[%emt 0:06:54]} 27. Kh3 {[%emt 0:02:56]} Ke7 {[%emt 0:00:56]} 28. Bc4 {[%emt 0:10:19]} b5 {[%emt 0:11:56]} 29. Bxb5 {[%emt 0:06:19]} Rb8 {[%emt 0:00:18]} 30. Be2 {[%emt 0:00:27]} Bxb2 {[%emt 0:00:11]} 31. Be3 {[%emt 0:00:04]} Bd4 {[%emt 0:00:44]} 32. Bxd4 {[%emt 0:00:13][%mdl 8192]} (32. Bc1 $1 $11 {and White is okay.}) 32... exd4 $11 {[%emt 0:00:03][%mdl 4096] Endgame KRB-KRN} 33. Rd1 {[%emt 0:00:06]} Rb2 {[%emt 0:01:17][%csl LRa2,LRe2]} 34. Bc4 {[%emt 0:00:34]} d3 {[%emt 0:11:01][%cal Bd4d3,Bd3d2][%mdl 32]} 35. Kg3 {[%emt 0:08:30]} d2 {[%emt 0:02:09]} 36. a3 {[%emt 0:00:09]} Nb3 {[%emt 0:05:13]} 37. Kf2 {[%emt 0:01:38]} Rc2 {[%emt 0:00:45]} 38. Bb5 {[%emt 0:00:31]} Rc1 {[%emt 0:01:04]} 39. Be2 {[%emt 0:00:04]} f5 {[%emt 0:03:43]} 40. Ke3 {[%emt 0:00:00]} (40. exf5 $17 {only move.} Kf6 41. f4) 40... Kf6 {[%emt 0:00:00]} 41. Kf4 {[%emt 0:21:53]} Rc2 {[%emt 0:20:45]} 42. Rg1 $2 {[%emt 0:04:57]} (42. Ke3) 42... Nc1 $2 {[%emt 0:06:27]} (42... Rc1 43. Bd1 $17) (42... Nd4 $19 {is more deadly.} 43. Ke3 Nb3) 43. Bd1 $17 {[%emt 0:00:26]} Rc3 {[%emt 0:00:47] Black is more active.} (43... Ra2 $1 $17 {[%cal Ra2a3]} 44. Ke3 fxe4 45. fxe4 Rxa3+ 46. Kxd2 Nb3+ 47. Kd3 Nc5+ 48. Kd4 Rd3+ 49. Kc4 Rh3 50. Rf1+ Ke5 51. Bxh5 Nxe4) 44. exf5 $15 {[%emt 0:01:08]} Rxa3 {[%emt 0:00:47]} (44... Nd3+ $15 45. Ke3 Rxa3 46. Kxd2 Nf4) 45. Rg6+ $11 {[%emt 0:01:22]} Kf7 {[%emt 0:00:43] ...Nd3+ is the strong threat.} 46. Rh6 {[%emt 0:06:19]} ({Don't play} 46. Rxd6 Nd3+ 47. Ke3 Nb2+ 48. Ke2 Ra1 $19) (46. Kg5 $1 $11 {was the only way to keep the balance.}) 46... Ra1 $17 {[%emt 0:03:38] Hoping for ...Nb3.} 47. Ke3 {[%emt 0:05:25] [#]} Nb3 {[%emt 0:00:43]} (47... a3 $1 $17 {[%cal Ra3a2] White must now prevent ...a2.} 48. Rxd6 a2 49. Kxd2 Rb1) 48. Ke2 $11 {[%emt 0:00:06]} a3 {[%emt 0:02:12][%cal Oa1d1]} 49. Rh7+ $2 {[%emt 0:01:17]} (49. Rxd6 $11 a2 50. Ra6) 49... Kf6 {[%emt 0:00:44]} (49... Kg8 $19 {has better winning chances. ( -> ...Rxd1)} 50. Ra7 {[#]} a2 $1 51. Bxb3 (51. Ra8+ $2 Kg7 $19) 51... Re1+ 52. Kxd2 a1=Q 53. Rxa1 Rxa1) 50. Ra7 $2 {[%emt 0:00:33][%mdl 8192] [#]} (50. Bxb3 $17 a2 51. Kxd2 (51. Rh6+ $2 Kg7 $19) 51... Rd1+ 52. Bxd1) 50... a2 $1 $19 {[%emt 0:00:28][%cal Oa1d1] Black is clearly winning.} 51. Bxb3 {[%emt 0:00:03]} (51. Ra6 Nc1+) 51... Re1+ {[%emt 0:00:06]} 52. Kxd2 {[%emt 0:00:02]} a1=Q {[%emt 0:00:08]} 53. Rxa1 {[%emt 0:00:03]} Rxa1 {[%emt 0:00:06]} 54. Bc2 {[%emt 0:00:01]} Rh1 {[%emt 0:00:16] Weighted Error Value: White=0.69/Black=0.35} 0-1

[Event "Swietokrzyskie GM Chess-ch 2022"]
[Site "Zagnansk"]
[Date "2022.05.02"]
[Round "4.2"]
[White "Szpar, IM Milosz"]
[Black "Tazbir, GM Marcin"]
[Result "0-1"]
[ECO "C55"]
[WhiteElo "2434"]
[BlackElo "2506"]
[Annotator "TA"]
[PlyCount "50"]
[EventDate "2022.04.29"]
[EventCountry "POL"]
[SourceTitle "playchess.com"]
[Source "ChessBase"]
[SourceQuality "1"]
[TimeControl "40/5400+30:1800+30"]

{[%evp 10,50,33,27,40,39,34,32,27,28,35,33,30,26,33,27,29,14,11,11,24,12,21,-23,0,-29,-11,-99,-96,-226,-221,-214,-215,-323,-305,-1275,-1321,-3146,-472,-2610,-2627,-2187,-2117]} 1. e4 {[%emt 0:00:02]} e5 {[%emt 0:00:05]} 2. Nf3 {[%emt 0:00:08]} Nc6 {[%emt 0:00:05]} 3. Bc4 {[%emt 0:00:07]} Nf6 {[%emt 0:00:07]} 4. d3 {[%emt 0:00:10]} h6 {[%emt 0:00:09]} 5. O-O {[%emt 0:00:12]} d6 {[%emt 0:01:57]} 6. a4 {[%emt 0:00:12][%cal Ba2a4,Ba4a5][%mdl 32]} g6 {[%emt 0:01:23] C55: Two Knights: 4 d3, 4 d4 exd4 5 e5 and Max Lange Attack.} 7. a5 {[%emt 0:00:29]} a6 {[%emt 0:00:33]} 8. Nc3 {[%emt 0:05:46]} Bg7 {[%emt 0:01:38] White is slightly better.} 9. Re1 {[%emt 0:03:59]} O-O {[%emt 0:02:12]} 10. h3 {[%emt 0:08:42]} Kh7 {[%emt 0:02:41]} 11. Be3 {[%emt 0:05:22]} Be6 {[%emt 0:04:58]} 12. Bxe6 {[%emt 0:07:22]} fxe6 {[%emt 0:00:11]} 13. d4 {[%emt 0:00:20] [#]} exd4 $5 $146 {[%emt 0:02:50][%mdl 8] New and interesting.} ({Predecessor:} 13... Nh5 14. d5 exd5 15. Nxd5 Rf7 16. Ra3 Qd7 17. Bd2 Raf8 18. Rd3 Nf6 19. Nxf6+ Rxf6 {½-½ (47) Madej,M (2017)-Karolczuk,I (2328) Sypniewo 2022}) 14. Nxd4 {[%emt 0:03:16]} Nxd4 {[%emt 0:00:08]} 15. Bxd4 {[%emt 0:00:06]} Nd7 {[%emt 0:00:25]} 16. Be3 {[%emt 0:03:40]} Ne5 {[%emt 0:03:06]} 17. Qe2 {[%emt 0:06:00]} g5 {[%emt 0:01:18][%cal Bg6g5,Bg5g4][%mdl 32]} 18. Ra3 {[%emt 0:07:08] [#]} (18. Rf1 $11 {keeps the balance.}) 18... g4 $1 $17 {[%emt 0:06:11] And now ...Qh4 would win.} 19. Kh2 {[%emt 0:06:54] This costs White the game.} (19. Bc1 $17) 19... Qh4 {[%emt 0:07:30]} 20. Rh1 {[%emt 0:05:36]} Rf7 {[%emt 0:13:54]} 21. Ra4 {[%emt 0:11:27]} (21. g3 $142 Qxh3+ 22. Kg1 Nf3+ 23. Qxf3 Rxf3 24. Rxh3 gxh3 25. Kh2) 21... Raf8 $19 {[%emt 0:14:44][%cal Rf7f2]} 22. Nd1 {[%emt 0:01:48] [#]} (22. Kg1 g3 23. f3) 22... Nf3+ $1 {[%emt 0:02:41][%mdl 512] Black is clearly winning.} 23. gxf3 {[%emt 0:00:07]} (23. Qxf3 gxf3) 23... Qxh3+ {[%emt 0:00:05]} 24. Kg1 {[%emt 0:00:06] [#]} gxf3 $1 {[%emt 0:00:05][%csl Gf3][%cal Rh3g2][%mdl 512]} 25. Rxh3 {[%emt 0:00:44]} fxe2 {[%emt 0:00:07] Weighted Error Value: White=0.86/Black=0.03 (flawless)} 0-1